[Event "*** Titled Tuesday Blitz"]
[Site "Chess.com"]
[Date "2021.03.30"]
[Round "5"]
[White "Sjakkerntobi"]
[Black "Orlov_Oleg"]
[Result "0-1"]
[WhiteElo "2399"]
[BlackElo "2598"]
[TimeControl "180+1"]
[EndTime "10:56:17 PDT"]
[Termination "Orlov_Oleg won by checkmate"]

1. e4 {[%clk 0:03:00.9]} 1... c5 {[%clk 0:02:59.5]} 2. Nf3 {[%clk 0:03:00.5]}
2... e6 {[%clk 0:02:59.9]} 3. d4 {[%clk 0:03:01.2]} 3... cxd4 {[%clk 0:03:00.6]}
4. Nxd4 {[%clk 0:03:02.1]} 4... Qb6 {[%clk 0:03:00.4]} 5. Nb3 {[%clk 0:02:59]}
5... Nc6 {[%clk 0:02:59.1]} 6. Nc3 {[%clk 0:02:58.2]} 6... a6 {[%clk 0:02:59.7]}
7. Be3 {[%clk 0:02:57.3]} 7... Qc7 {[%clk 0:03:00.2]} 8. Be2 {[%clk 0:02:48.6]}
8... Nf6 {[%clk 0:03:00]} 9. O-O {[%clk 0:02:48.5]} 9... Bb4 {[%clk 0:02:59.1]}
10. f3 {[%clk 0:02:22.2]} 10... Ne5 {[%clk 0:02:57.1]} 11. Qd4 {[%clk
0:02:10.7]} 11... Nc6 {[%clk 0:02:53.3]} 12. Qd1 {[%clk 0:01:58.1]} 12... O-O
{[%clk 0:02:50.2]} 13. a3 {[%clk 0:01:56.2]} 13... Bxc3 {[%clk 0:02:49.4]} 14.
bxc3 {[%clk 0:01:57.1]} 14... d5 {[%clk 0:02:49.5]} 15. Bd3 {[%clk 0:01:31.8]}
15... Ne5 {[%clk 0:02:38.3]} 16. Qe1 {[%clk 0:01:29.5]} 16... Ng6 {[%clk
0:02:19.6]} 17. Bd4 {[%clk 0:01:13.6]} 17... e5 {[%clk 0:02:18.4]} 18. Bc5
{[%clk 0:01:12.7]} 18... Re8 {[%clk 0:02:16.8]} 19. Rd1 {[%clk 0:01:05.9]} 19...
Be6 {[%clk 0:02:09.9]} 20. Bf2 {[%clk 0:01:03.9]} 20... Rac8 {[%clk 0:02:06.4]}
21. Nc5 {[%clk 0:01:01.2]} 21... Nf4 {[%clk 0:02:01.3]} 22. Nxe6 {[%clk
0:00:55]} 22... fxe6 {[%clk 0:02:01.1]} 23. exd5 {[%clk 0:00:55]} 23... exd5
{[%clk 0:02:00.5]} 24. Bf5 {[%clk 0:00:54.9]} 24... Rcd8 {[%clk 0:01:56.2]} 25.
Rb1 {[%clk 0:00:38.1]} 25... b5 {[%clk 0:01:54.7]} 26. Bg3 {[%clk 0:00:31.9]}
26... Qc5+ {[%clk 0:01:51.4]} 27. Bf2 {[%clk 0:00:30.6]} 27... Qxa3 {[%clk
0:01:52]} 28. Ra1 {[%clk 0:00:27.7]} 28... Qd6 {[%clk 0:01:52.4]} 29. Qe3 {[%clk
0:00:25.5]} 29... g6 {[%clk 0:01:39.9]} 30. Bd3 {[%clk 0:00:24.9]} 30... Kg7
{[%clk 0:01:37.7]} 31. Qb6 {[%clk 0:00:21.6]} 31... Qxb6 {[%clk 0:01:34.3]} 32.
Bxb6 {[%clk 0:00:22.5]} 32... Rd6 {[%clk 0:01:34.4]} 33. Bc5 {[%clk 0:00:22.6]}
33... Rc6 {[%clk 0:01:33.5]} 34. Bb4 {[%clk 0:00:20.5]} 34... g5 {[%clk
0:01:22.2]} 35. g3 {[%clk 0:00:19.9]} 35... Nxd3 {[%clk 0:01:12.6]} 36. cxd3
{[%clk 0:00:19.5]} 36... d4 {[%clk 0:01:12.8]} 37. cxd4 {[%clk 0:00:18.6]} 37...
exd4 {[%clk 0:01:13.7]} 38. Rfe1 {[%clk 0:00:19.3]} 38... Rxe1+ {[%clk
0:01:12.5]} 39. Rxe1 {[%clk 0:00:18.2]} 39... Nd5 {[%clk 0:01:13.2]} 40. Ba5
{[%clk 0:00:16.4]} 40... b4 {[%clk 0:01:05.7]} 41. Rb1 {[%clk 0:00:14.4]} 41...
Rc5 {[%clk 0:01:03.8]} 42. Bd8 {[%clk 0:00:13.1]} 42... h6 {[%clk 0:01:01.9]}
43. Kf2 {[%clk 0:00:13.2]} 43... a5 {[%clk 0:01:01.8]} 44. Ra1 {[%clk
0:00:12.4]} 44... b3 {[%clk 0:00:59.5]} 45. Rb1 {[%clk 0:00:12.6]} 45... a4
{[%clk 0:00:59.1]} 46. f4 {[%clk 0:00:07.8]} 46... Kg6 {[%clk 0:00:57.5]} 47.
Kf3 {[%clk 0:00:08.2]} 47... Nc3 {[%clk 0:00:54.2]} 48. Rb2 {[%clk 0:00:06.5]}
48... gxf4 {[%clk 0:00:50]} 49. gxf4 {[%clk 0:00:06.5]} 49... Kf5 {[%clk
0:00:47.1]} 50. Be7 {[%clk 0:00:06.6]} 50... Ra5 {[%clk 0:00:44.4]} 51. Ba3
{[%clk 0:00:07.3]} 51... Ra8 {[%clk 0:00:43.5]} 52. Rg2 {[%clk 0:00:07.2]} 52...
Nb5 {[%clk 0:00:42.7]} 53. Bb2 {[%clk 0:00:05.1]} 53... a3 {[%clk 0:00:42.8]}
54. Ba1 {[%clk 0:00:05.8]} 54... Nc3 {[%clk 0:00:42.4]} 55. h4 {[%clk
0:00:02.9]} 55... Rb8 {[%clk 0:00:42.6]} 56. Rg8 {[%clk 0:00:01.4]} 56... Rxg8
{[%clk 0:00:41]} 57. Bxc3 {[%clk 0:00:01.9]} 57... dxc3 {[%clk 0:00:40.6]} 58.
d4 {[%clk 0:00:02.8]} 58... c2 {[%clk 0:00:40.6]} 59. d5 {[%clk 0:00:02.3]}
59... c1=Q {[%clk 0:00:39.6]} 60. d6 {[%clk 0:00:03.2]} 60... b2 {[%clk
0:00:39.8]} 61. d7 {[%clk 0:00:03.3]} 61... b1=Q {[%clk 0:00:40.1]} 62. d8=Q
{[%clk 0:00:04.2]} 62... Rxd8 {[%clk 0:00:39.6]} 63. Kg2 {[%clk 0:00:05.1]}
63... Rd2+ {[%clk 0:00:38.8]} 64. Kh3 {[%clk 0:00:06]} 64... Qc3# {[%clk
0:00:38.4]} 0-1

[Event "*** Titled Tuesday Blitz"]
[Site "Chess.com"]
[Date "2021.03.30"]
[Round "5"]
[White "maximnovik"]
[Black "ZEN-22"]
[Result "1-0"]
[WhiteElo "2561"]
[BlackElo "2408"]
[TimeControl "180+1"]
[EndTime "10:56:17 PDT"]
[Termination "maximnovik won by resignation"]

1. Nf3 {[%clk 0:03:00.9]} 1... Nc6 {[%clk 0:02:53.7]} 2. g3 {[%clk 0:02:58.7]}
2... e5 {[%clk 0:02:52.9]} 3. d3 {[%clk 0:02:57.1]} 3... d5 {[%clk 0:02:52.4]}
4. Bg2 {[%clk 0:02:56.6]} 4... h6 {[%clk 0:02:52.2]} 5. O-O {[%clk 0:02:56.7]}
5... Nf6 {[%clk 0:02:51]} 6. c4 {[%clk 0:02:55.8]} 6... Be6 {[%clk 0:02:42.4]}
7. cxd5 {[%clk 0:02:53.5]} 7... Nxd5 {[%clk 0:02:41.1]} 8. a3 {[%clk 0:02:51.4]}
8... Bc5 {[%clk 0:02:35.4]} 9. b4 {[%clk 0:02:49.6]} 9... Bb6 {[%clk 0:02:35.2]}
10. Bb2 {[%clk 0:02:49.4]} 10... f6 {[%clk 0:02:15.6]} 11. Nbd2 {[%clk
0:02:48.9]} 11... O-O {[%clk 0:02:12.3]} 12. Rc1 {[%clk 0:02:48.5]} 12... Rf7
{[%clk 0:02:11.6]} 13. Ne4 {[%clk 0:02:47.2]} 13... Rd7 {[%clk 0:02:10.2]} 14.
Nc5 {[%clk 0:02:08.2]} 14... Bxc5 {[%clk 0:02:06.6]} 15. Rxc5 {[%clk 0:02:08.6]}
15... Nb6 {[%clk 0:02:04.5]} 16. Qc2 {[%clk 0:02:03.4]} 16... Ne7 {[%clk
0:01:49.8]} 17. Rc1 {[%clk 0:01:47.7]} 17... c6 {[%clk 0:01:45.9]} 18. a4 {[%clk
0:01:36.9]} 18... a6 {[%clk 0:01:43.6]} 19. b5 {[%clk 0:01:32.1]} 19... axb5
{[%clk 0:01:42.1]} 20. axb5 {[%clk 0:01:31.8]} 20... Na4 {[%clk 0:01:41.7]} 21.
bxc6 {[%clk 0:01:23]} 21... bxc6 {[%clk 0:01:40.3]} 22. Ba3 {[%clk 0:00:54.1]}
22... Nxc5 {[%clk 0:01:36.6]} 23. Bxc5 {[%clk 0:00:53.9]} 23... Ra2 {[%clk
0:01:31.1]} 24. Qd1 {[%clk 0:00:49.8]} 24... Nd5 {[%clk 0:01:28]} 25. Nd2 {[%clk
0:00:49.4]} 25... Rb7 {[%clk 0:01:24.3]} 26. Nc4 {[%clk 0:00:47.4]} 26... Rb5
{[%clk 0:01:20.6]} 27. Be3 {[%clk 0:00:27.5]} 27... Nxe3 {[%clk 0:01:16.4]} 28.
Nxe3 {[%clk 0:00:26.7]} 28... Rbb2 {[%clk 0:01:12.9]} 29. Rxc6 {[%clk 0:00:22]}
29... Rxe2 {[%clk 0:00:51]} 30. Rxe6 {[%clk 0:00:18.7]} 30... Rxe3 {[%clk
0:00:50.9]} 31. fxe3 {[%clk 0:00:16.5]} 31... Rxg2+ {[%clk 0:00:49.2]} 32. Kxg2
{[%clk 0:00:13.6]} 32... Qd5+ {[%clk 0:00:50.1]} 33. Qf3 {[%clk 0:00:11.6]}
33... Qxe6 {[%clk 0:00:51]} 34. g4 {[%clk 0:00:10.7]} 34... Qa2+ {[%clk
0:00:50.2]} 35. Kg3 {[%clk 0:00:09.8]} 35... Kf7 {[%clk 0:00:44.8]} 36. h4
{[%clk 0:00:09.7]} 36... Kg6 {[%clk 0:00:42.2]} 37. Qe4+ {[%clk 0:00:09.4]}
37... Kf7 {[%clk 0:00:41.9]} 38. h5 {[%clk 0:00:09.7]} 38... Qe6 {[%clk
0:00:39.4]} 39. Qb7+ {[%clk 0:00:09.8]} 39... Kf8 {[%clk 0:00:37.7]} 40. Qa8+
{[%clk 0:00:09.6]} 40... Ke7 {[%clk 0:00:36.4]} 41. Qb7+ {[%clk 0:00:09.2]}
41... Kf8 {[%clk 0:00:33.3]} 42. Qa8+ {[%clk 0:00:09.1]} 42... Qe8 {[%clk
0:00:33.4]} 43. Qxe8+ {[%clk 0:00:08.6]} 43... Kxe8 {[%clk 0:00:32.8]} 44. Kf3
{[%clk 0:00:09]} 44... Kd7 {[%clk 0:00:33.3]} 45. Ke4 {[%clk 0:00:09.5]} 45...
Ke6 {[%clk 0:00:31.7]} 46. d4 {[%clk 0:00:10]} 46... exd4 {[%clk 0:00:31]} 47.
exd4 {[%clk 0:00:10]} 47... Kf7 {[%clk 0:00:24.4]} 48. d5 {[%clk 0:00:09.8]}
48... g6 {[%clk 0:00:22.4]} 49. hxg6+ {[%clk 0:00:07.9]} 49... Kxg6 {[%clk
0:00:22.4]} 50. d6 {[%clk 0:00:08.3]} 50... Kf7 {[%clk 0:00:22.4]} 51. Kf5
{[%clk 0:00:08.8]} 51... h5 {[%clk 0:00:17.5]} 52. gxh5 {[%clk 0:00:08.4]} 52...
Kf8 {[%clk 0:00:17.4]} 53. h6 {[%clk 0:00:08.6]} 53... Kf7 {[%clk 0:00:17.3]}
54. h7 {[%clk 0:00:08.8]} 54... Kg7 {[%clk 0:00:17.7]} 55. d7 {[%clk 0:00:09.3]}
55... Kh8 {[%clk 0:00:18]} 56. d8=Q+ {[%clk 0:00:09.2]} 56... Kxh7 {[%clk
0:00:18.8]} 57. Qxf6 {[%clk 0:00:09.1]} 57... Kg8 {[%clk 0:00:19.4]} 58. Qe7
{[%clk 0:00:09.5]} 58... Kh8 {[%clk 0:00:18.9]} 59. Kg6 {[%clk 0:00:10.1]} 1-0

[Event "*** Titled Tuesday Blitz"]
[Site "Chess.com"]
[Date "2021.03.30"]
[Round "5"]
[White "Harry_Rakkel"]
[Black "Rozhkov_V"]
[Result "1-0"]
[WhiteElo "2597"]
[BlackElo "2351"]
[TimeControl "180+1"]
[EndTime "10:56:17 PDT"]
[Termination "Harry_Rakkel won by resignation"]

1. d4 {[%clk 0:02:32.6]} 1... d5 {[%clk 0:02:59.4]} 2. c4 {[%clk 0:02:32]} 2...
dxc4 {[%clk 0:02:59.3]} 3. Nf3 {[%clk 0:02:30.9]} 3... Nf6 {[%clk 0:02:58.8]} 4.
e3 {[%clk 0:02:30.2]} 4... e6 {[%clk 0:02:58.9]} 5. Bxc4 {[%clk 0:02:29.8]} 5...
a6 {[%clk 0:02:59.5]} 6. O-O {[%clk 0:02:28.4]} 6... c5 {[%clk 0:02:59.5]} 7. a4
{[%clk 0:02:27.5]} 7... Nc6 {[%clk 0:02:56.3]} 8. Nc3 {[%clk 0:02:22.8]} 8...
Be7 {[%clk 0:02:53.6]} 9. dxc5 {[%clk 0:02:21.3]} 9... Bxc5 {[%clk 0:02:51.7]}
10. Qxd8+ {[%clk 0:02:18.9]} 10... Kxd8 {[%clk 0:02:52.2]} 11. Bd2 {[%clk
0:02:14]} 11... Ke7 {[%clk 0:02:51.9]} 12. Rfc1 {[%clk 0:02:09.7]} 12... b6
{[%clk 0:02:50.6]} 13. Ne2 {[%clk 0:02:06.6]} 13... Bb7 {[%clk 0:02:50]} 14. a5
{[%clk 0:01:56.9]} 14... Ne4 {[%clk 0:02:31.8]} 15. Be1 {[%clk 0:01:42.5]} 15...
Nd6 {[%clk 0:02:20.2]} 16. axb6 {[%clk 0:01:37.7]} 16... Nxc4 {[%clk 0:02:17.9]}
17. Rxc4 {[%clk 0:01:38.6]} 17... Bxb6 {[%clk 0:02:17.6]} 18. Ned4 {[%clk
0:01:26.1]} 18... Nxd4 {[%clk 0:02:13.6]} 19. Nxd4 {[%clk 0:01:15.5]} 19... Bd5
{[%clk 0:02:04.3]} 20. Rca4 {[%clk 0:01:04.7]} 20... Rhc8 {[%clk 0:02:03.8]} 21.
Bb4+ {[%clk 0:00:58.3]} 21... Kf6 {[%clk 0:02:02.2]} 22. Bc3 {[%clk 0:00:57.6]}
22... Kg6 {[%clk 0:01:53.2]} 23. Rxa6 {[%clk 0:00:52.8]} 23... Rxa6 {[%clk
0:01:52.4]} 24. Rxa6 {[%clk 0:00:53.7]} 24... Bxd4 {[%clk 0:01:43.1]} 25. exd4
{[%clk 0:00:54.6]} 25... Rb8 {[%clk 0:01:41.5]} 26. f3 {[%clk 0:00:52.1]} 26...
h5 {[%clk 0:01:31.8]} 27. h4 {[%clk 0:00:50]} 27... Kf5 {[%clk 0:01:28.5]} 28.
Kf2 {[%clk 0:00:49.6]} 28... f6 {[%clk 0:01:27.6]} 29. Ra7 {[%clk 0:00:47.4]}
29... Rb7 {[%clk 0:01:26.8]} 30. Ra3 {[%clk 0:00:40.5]} 30... g5 {[%clk
0:01:23.7]} 31. hxg5 {[%clk 0:00:39]} 31... fxg5 {[%clk 0:01:23.7]} 32. Ra1
{[%clk 0:00:28.8]} 32... h4 {[%clk 0:01:22.3]} 33. Ke3 {[%clk 0:00:21.8]} 33...
g4 {[%clk 0:01:17.6]} 34. fxg4+ {[%clk 0:00:18.8]} 34... Kxg4 {[%clk 0:01:17.5]}
35. Kf2 {[%clk 0:00:18.3]} 35... Rf7+ {[%clk 0:01:15.8]} 36. Kg1 {[%clk
0:00:18.4]} 36... Kg3 {[%clk 0:01:14.4]} 37. Be1+ {[%clk 0:00:17.4]} 37... Kg4
{[%clk 0:01:14.6]} 38. Ra3 {[%clk 0:00:14.8]} 38... Rf4 {[%clk 0:01:05.1]} 39.
Rh3 {[%clk 0:00:11.5]} 39... Kh5 {[%clk 0:00:53.1]} 40. Bf2 {[%clk 0:00:11.5]}
40... Rg4 {[%clk 0:00:46.9]} 41. g3 {[%clk 0:00:11.7]} 41... Kg5 {[%clk
0:00:42.4]} 42. Rxh4 {[%clk 0:00:11.8]} 42... Re4 {[%clk 0:00:36.4]} 43. Rxe4
{[%clk 0:00:10.4]} 43... Bxe4 {[%clk 0:00:37]} 44. Kf1 {[%clk 0:00:09.8]} 44...
Kg4 {[%clk 0:00:36.9]} 45. Ke2 {[%clk 0:00:09.8]} 45... Bd5 {[%clk 0:00:36.1]}
46. b4 {[%clk 0:00:09]} 46... Bc4+ {[%clk 0:00:33]} 47. Ke3 {[%clk 0:00:09.2]}
47... Bb5 {[%clk 0:00:33.1]} 48. Ke4 {[%clk 0:00:08.3]} 48... Bc4 {[%clk
0:00:30.6]} 49. Ke5 {[%clk 0:00:08.2]} 49... Kf3 {[%clk 0:00:30.8]} 50. Be1
{[%clk 0:00:08.4]} 50... Ke2 {[%clk 0:00:30.8]} 51. g4 {[%clk 0:00:08.6]} 51...
Kxe1 {[%clk 0:00:26.7]} 52. g5 {[%clk 0:00:08.8]} 52... Bd3 {[%clk 0:00:20.8]}
53. Kxe6 {[%clk 0:00:08.9]} 53... Kd2 {[%clk 0:00:20.3]} 54. d5 {[%clk
0:00:08.9]} 54... Kc3 {[%clk 0:00:20.7]} 55. d6 {[%clk 0:00:09.1]} 55... Bb5
{[%clk 0:00:17.6]} 56. d7 {[%clk 0:00:08.8]} 56... Bxd7+ {[%clk 0:00:17]} 57.
Kxd7 {[%clk 0:00:09.7]} 57... Kxb4 {[%clk 0:00:17.7]} 58. g6 {[%clk 0:00:10.5]}
1-0

[Event "*** Titled Tuesday Blitz"]
[Site "Chess.com"]
[Date "2021.03.30"]
[Round "5"]
[White "igorkovalenko"]
[Black "AlexOstrovskiy"]
[Result "1/2-1/2"]
[WhiteElo "2949"]
[BlackElo "2743"]
[TimeControl "180+1"]
[EndTime "10:56:19 PDT"]
[Termination "Game drawn by repetition"]

1. d4 {[%clk 0:03:00.9]} 1... Nf6 {[%clk 0:02:56.8]} 2. Nf3 {[%clk 0:03:01.4]}
2... c5 {[%clk 0:02:54.8]} 3. e3 {[%clk 0:03:00.3]} 3... d5 {[%clk 0:02:49.8]}
4. Nbd2 {[%clk 0:02:58.2]} 4... cxd4 {[%clk 0:02:44.3]} 5. exd4 {[%clk
0:02:59.1]} 5... Nc6 {[%clk 0:02:44.8]} 6. Bb5 {[%clk 0:02:50.1]} 6... Bg4
{[%clk 0:02:41.5]} 7. h3 {[%clk 0:02:49.9]} 7... Bxf3 {[%clk 0:02:39.4]} 8. Nxf3
{[%clk 0:02:49.6]} 8... e6 {[%clk 0:02:38.8]} 9. O-O {[%clk 0:02:48.2]} 9... Rc8
{[%clk 0:02:37.5]} 10. c3 {[%clk 0:02:48]} 10... Bd6 {[%clk 0:02:36.4]} 11. Bd3
{[%clk 0:02:45.3]} 11... O-O {[%clk 0:02:32.5]} 12. Bg5 {[%clk 0:02:42.1]} 12...
h6 {[%clk 0:02:31.3]} 13. Bh4 {[%clk 0:02:42.5]} 13... e5 {[%clk 0:02:29]} 14.
dxe5 {[%clk 0:02:34.5]} 14... Nxe5 {[%clk 0:02:29.9]} 15. Nxe5 {[%clk
0:02:31.9]} 15... Bxe5 {[%clk 0:02:30.8]} 16. Re1 {[%clk 0:02:32.4]} 16... Re8
{[%clk 0:02:25.9]} 17. Qf3 {[%clk 0:02:31.8]} 17... Qb6 {[%clk 0:02:19.7]} 18.
Re2 {[%clk 0:02:25.5]} 18... Ne4 {[%clk 0:01:36.7]} 19. Rae1 {[%clk 0:02:18.6]}
19... Bf6 {[%clk 0:01:01]} 20. Bxf6 {[%clk 0:01:44.5]} 20... Nxf6 {[%clk
0:01:01.9]} 21. Rxe8+ {[%clk 0:01:44]} 21... Rxe8 {[%clk 0:01:02.8]} 22. Rxe8+
{[%clk 0:01:44.2]} 22... Nxe8 {[%clk 0:01:03.7]} 23. Qxd5 {[%clk 0:01:44.3]}
23... Nf6 {[%clk 0:00:43]} 24. Qe5 {[%clk 0:01:36.3]} 24... Qd8 {[%clk
0:00:42.6]} 25. Bc2 {[%clk 0:01:18.4]} 25... b6 {[%clk 0:00:42.5]} 26. g3 {[%clk
0:01:06.9]} 26... h5 {[%clk 0:00:42.1]} 27. Qe2 {[%clk 0:01:02.9]} 27... g6
{[%clk 0:00:41.4]} 28. a4 {[%clk 0:00:58.7]} 28... Kg7 {[%clk 0:00:41.1]} 29.
Bb3 {[%clk 0:00:53.9]} 29... Qd7 {[%clk 0:00:41.4]} 30. Qf3 {[%clk 0:00:51.3]}
30... Qxh3 {[%clk 0:00:39.9]} 31. Qb7 {[%clk 0:00:48.6]} 31... Qd7 {[%clk
0:00:36.8]} 32. Qxd7 {[%clk 0:00:48.6]} 32... Nxd7 {[%clk 0:00:37.7]} 33. Kg2
{[%clk 0:00:42.6]} 33... f5 {[%clk 0:00:31.7]} 34. Bd5 {[%clk 0:00:33.8]} 34...
Kf6 {[%clk 0:00:32]} 35. b4 {[%clk 0:00:33.8]} 35... Ke5 {[%clk 0:00:23.1]} 36.
Bf7 {[%clk 0:00:30.8]} 36... Kf6 {[%clk 0:00:23.5]} 37. Be8 {[%clk 0:00:31.2]}
37... Ne5 {[%clk 0:00:21.8]} 38. f4 {[%clk 0:00:28.1]} 38... Nc4 {[%clk
0:00:21.5]} 39. Kf2 {[%clk 0:00:25.2]} 39... Nd2 {[%clk 0:00:20.2]} 40. Bc6
{[%clk 0:00:24.8]} 40... g5 {[%clk 0:00:19.6]} 41. Ke3 {[%clk 0:00:23.2]} 41...
Nf1+ {[%clk 0:00:14.8]} 42. Kf2 {[%clk 0:00:23.4]} 42... Nd2 {[%clk 0:00:15.2]}
43. Ke2 {[%clk 0:00:23.9]} 43... Nc4 {[%clk 0:00:11.8]} 44. Kd3 {[%clk
0:00:23.7]} 44... Nd6 {[%clk 0:00:10.9]} 45. c4 {[%clk 0:00:23.8]} 45... gxf4
{[%clk 0:00:09.9]} 46. gxf4 {[%clk 0:00:24.7]} 46... h4 {[%clk 0:00:10.5]} 47.
Bg2 {[%clk 0:00:24.2]} 47... Ke6 {[%clk 0:00:06.7]} 48. Bd5+ {[%clk 0:00:20.2]}
48... Ke7 {[%clk 0:00:03.9]} 49. c5 {[%clk 0:00:18.8]} 49... bxc5 {[%clk
0:00:04.2]} 50. bxc5 {[%clk 0:00:19.7]} 50... Ne8 {[%clk 0:00:05.1]} 51. Bg2
{[%clk 0:00:18.5]} 51... Nc7 {[%clk 0:00:03.8]} 52. Kd4 {[%clk 0:00:18.5]} 52...
Ke6 {[%clk 0:00:04.6]} 53. Bf1 {[%clk 0:00:17.1]} 53... Kf6 {[%clk 0:00:04.2]}
54. c6 {[%clk 0:00:16.6]} 54... Ke6 {[%clk 0:00:05.1]} 55. Kc5 {[%clk
0:00:16.7]} 55... Ke7 {[%clk 0:00:04.9]} 56. Bh3 {[%clk 0:00:16.8]} 56... Ke6
{[%clk 0:00:04.5]} 57. a5 {[%clk 0:00:16.7]} 57... Ne8 {[%clk 0:00:04.3]} 58.
Kb5 {[%clk 0:00:16.6]} 58... Nc7+ {[%clk 0:00:04.3]} 59. Kc5 {[%clk 0:00:17.1]}
59... Na6+ {[%clk 0:00:04.2]} 60. Kb5 {[%clk 0:00:17.1]} 60... Nc7+ {[%clk
0:00:05.1]} 61. Kc5 {[%clk 0:00:18]} 1/2-1/2

[Event "*** Titled Tuesday Blitz"]
[Site "Chess.com"]
[Date "2021.03.30"]
[Round "5"]
[White "jamalm2"]
[Black "poneis_malditos"]
[Result "1-0"]
[WhiteElo "1975"]
[BlackElo "2281"]
[TimeControl "180+1"]
[EndTime "10:56:20 PDT"]
[Termination "jamalm2 won by resignation"]

1. e4 {[%clk 0:03:00.9]} 1... c5 {[%clk 0:03:00]} 2. Nf3 {[%clk 0:02:59.7]} 2...
e6 {[%clk 0:03:00.6]} 3. g3 {[%clk 0:02:57.9]} 3... g6 {[%clk 0:02:56]} 4. Bg2
{[%clk 0:02:57.7]} 4... Bg7 {[%clk 0:02:56.4]} 5. Nc3 {[%clk 0:02:57.7]} 5...
Nc6 {[%clk 0:02:55.2]} 6. d3 {[%clk 0:02:57.6]} 6... d6 {[%clk 0:02:55.4]} 7.
O-O {[%clk 0:02:57.7]} 7... Nge7 {[%clk 0:02:55.2]} 8. h3 {[%clk 0:02:57.2]}
8... O-O {[%clk 0:02:55.6]} 9. Be3 {[%clk 0:02:56.3]} 9... a6 {[%clk 0:02:55.1]}
10. Nh2 {[%clk 0:02:55.8]} 10... b5 {[%clk 0:02:54]} 11. Qd2 {[%clk 0:02:53.4]}
11... Re8 {[%clk 0:02:50.3]} 12. Ng4 {[%clk 0:02:49.6]} 12... Nd4 {[%clk
0:02:35.9]} 13. Bg5 {[%clk 0:02:43.7]} 13... h5 {[%clk 0:02:04.5]} 14. Nf6+
{[%clk 0:02:30.6]} 14... Bxf6 {[%clk 0:01:59.3]} 15. Bxf6 {[%clk 0:02:30.4]}
15... Kh7 {[%clk 0:02:00.2]} 16. Qg5 {[%clk 0:02:19.9]} 16... Qc7 {[%clk
0:01:59]} 17. g4 {[%clk 0:02:18]} 17... Ng8 {[%clk 0:01:53.8]} 18. gxh5 {[%clk
0:02:17.7]} 18... Nxf6 {[%clk 0:01:53.9]} 19. hxg6+ {[%clk 0:02:17.3]} 19...
fxg6 {[%clk 0:01:54.2]} 20. Qxf6 {[%clk 0:02:16.6]} 20... Nxc2 {[%clk
0:01:51.3]} 21. e5 {[%clk 0:02:09]} 21... d5 {[%clk 0:01:50.7]} 22. Rac1 {[%clk
0:02:05.3]} 22... Nb4 {[%clk 0:01:45.2]} 23. d4 {[%clk 0:01:57.1]} 23... c4
{[%clk 0:01:42.8]} 24. Ne2 {[%clk 0:01:54.1]} 24... Qg7 {[%clk 0:01:40.4]} 25.
Qh4+ {[%clk 0:01:52.1]} 25... Kg8 {[%clk 0:01:40.3]} 26. Rc3 {[%clk 0:01:42.4]}
26... Nd3 {[%clk 0:01:36.8]} 27. Nc1 {[%clk 0:01:41]} 27... Nxb2 {[%clk
0:01:15]} 28. Rg3 {[%clk 0:01:38.7]} 28... Rf8 {[%clk 0:01:08.4]} 29. f4 {[%clk
0:01:30.7]} 29... Rf5 {[%clk 0:01:08.1]} 30. Bf3 {[%clk 0:01:28.3]} 30... Kf7
{[%clk 0:00:59.3]} 31. Bg4 {[%clk 0:01:27.1]} 31... Bd7 {[%clk 0:00:56.9]} 32.
Bxf5 {[%clk 0:01:25.7]} 32... exf5 {[%clk 0:00:57.8]} 33. Rf2 {[%clk 0:01:20.7]}
33... Na4 {[%clk 0:00:56.3]} 34. Rfg2 {[%clk 0:01:19.6]} 34... Rh8 {[%clk
0:00:49.3]} 35. Qf6+ {[%clk 0:01:18.5]} 35... Qxf6 {[%clk 0:00:48.7]} 36. exf6
{[%clk 0:01:18.3]} 36... Rh6 {[%clk 0:00:48.4]} 37. Re2 {[%clk 0:01:10.5]} 37...
Kxf6 {[%clk 0:00:45.3]} 38. Re5 {[%clk 0:01:10.7]} 38... b4 {[%clk 0:00:32.9]}
39. Rxd5 {[%clk 0:01:09]} 39... Be6 {[%clk 0:00:33.3]} 40. Rd6 {[%clk
0:01:07.8]} 40... Ke7 {[%clk 0:00:28.5]} 41. Rxa6 {[%clk 0:01:05.9]} 41... Nc3
{[%clk 0:00:29.1]} 42. Re3 {[%clk 0:00:55.8]} 42... Ne4 {[%clk 0:00:29.2]} 43.
Rb6 {[%clk 0:00:50.5]} 43... b3 {[%clk 0:00:20.3]} 44. axb3 {[%clk 0:00:49.3]}
44... c3 {[%clk 0:00:21.2]} 45. Rc6 {[%clk 0:00:35.1]} 45... Rh4 {[%clk
0:00:21.2]} 46. Ne2 {[%clk 0:00:32.7]} 46... Bxb3 {[%clk 0:00:19.6]} 47. Nxc3
{[%clk 0:00:30.7]} 47... Bc2 {[%clk 0:00:17.1]} 48. Nd5+ {[%clk 0:00:28.9]}
48... Kd7 {[%clk 0:00:17.4]} 49. Rxc2 {[%clk 0:00:28.4]} 49... Ng3 {[%clk
0:00:17.6]} 50. Kg2 {[%clk 0:00:26.8]} 50... Nh5 {[%clk 0:00:17.4]} 51. Rb3
{[%clk 0:00:22.4]} 51... Kd6 {[%clk 0:00:18.3]} 52. Rc5 {[%clk 0:00:20]} 52...
Nxf4+ {[%clk 0:00:18.6]} 53. Nxf4 {[%clk 0:00:18.6]} 53... Rxf4 {[%clk
0:00:19.5]} 54. Rb6+ {[%clk 0:00:18.5]} 54... Kd7 {[%clk 0:00:20.4]} 55. d5
{[%clk 0:00:16.3]} 55... Rd4 {[%clk 0:00:19.9]} 56. Rxg6 {[%clk 0:00:14.2]}
56... Rd2+ {[%clk 0:00:19.6]} 57. Kf3 {[%clk 0:00:13]} 1-0